fUSD/lending_fUSD_20240728
["ID","MTS","AMOUNT","RATE_DAILY","PERIOD"]
[333489039,1722192631837,-9544.17950565,0.000108,2]
[333489040,1722192631851,-975.65228893,0.000108,2]
[333489041,1722192631865,-79908.31743744,0.000108,2]
[333489042,1722192631877,-725.44019041,0.000108,2]
[333489044,1722192631898,-3530.84168186,0.000108,2]
[333489047,1722192631913,-24867.57445986,0.000108,2]
[333489063,1722192637601,-1284.36578096,0.000108,2]
[333489064,1722192637616,-2033.01980657,0.000108,2]
[333489065,1722192637629,-498.35828287,0.000108,2]
[333489066,1722192637673,-34149.99999998,0.000108,2]
[333489067,1722192637686,-552.62070963,0.000108,2]
[333489068,1722192637698,-863.61830867,0.000108,2]
[333489069,1722192637711,-535.43603324,0.000108,2]
[333489070,1722192637746,-256.02265198,0.000108,2]
[333489071,1722192637758,-13211.39102674,0.000108,2]
[333489072,1722192637834,-83393.64964387,0.000108,2]
[333489084,1722192639751,-128412.03591141,0.000108,2]
[333489085,1722192639765,-33155.10399904,0.000108,2]
[333489086,1722192639775,-150.0,0.00010849,2]
[333489087,1722192639787,-1497.4301,0.00010899,2]
[333489089,1722192639797,-300.0,0.00010899,2]
[333489090,1722192639808,-1000.0,0.000109,2]
[333489091,1722192639818,-951.082554,0.000109,2]
[333489092,1722192639829,-822.27768241,0.000109,2]
[333489093,1722192639839,-1000.0,0.000109,2]
[333489094,1722192639849,-163.68199987,0.000109,2]
[333489095,1722192639860,-163.68199979,0.000109,2]
[333489096,1722192639871,-163.68199979,0.000109,2]
[333489097,1722192639882,-163.68199979,0.000109,2]
[333489098,1722192639892,-163.68199979,0.000109,2]
[333489099,1722192639903,-163.68199979,0.000109,2]
[333489100,1722192639914,-163.68199979,0.000109,2]
[333489101,1722192639924,-163.68199979,0.000109,2]
[333489102,1722192639934,-163.68199979,0.000109,2]
[333489103,1722192639945,-163.68199979,0.000109,2]
[333489104,1722192639955,-499.99,0.00010957,2]
[333489105,1722192639965,-150.0,0.00010957,2]
[333489106,1722192639976,-212.21304832,0.00010958,2]
[333489107,1722192639989,-162.69754725,0.00010958,2]
[333489108,1722192639999,-500.0,0.00010958,2]
[333489109,1722192640009,-500.0,0.00010958,2]
[333489110,1722192640023,-500.0,0.00010958,2]
[333489111,1722192640034,-507.08,0.00010958,2]
[333489112,1722192640044,-1005.68,0.00010958,2]
[333489113,1722192640054,-1005.68,0.00010958,2]
[333489114,1722192640064,-500.0,0.00010958,2]
[333489115,1722192640075,-493.30085492,0.00010958,2]
[333489116,1722192640085,-500.0,0.00010958,2]
[333489117,1722192640096,-614.84547932,0.00010958,2]
[333489118,1722192640106,-500.0,0.00010958,2]
[333489119,1722192640116,-500.0,0.00010958,2]
[333489120,1722192640126,-500.0,0.00010958,2]
[333489121,1722192640136,-500.0,0.00010958,2]
[333489122,1722192640146,-500.0,0.00010958,2]
[333489123,1722192640157,-507.10331201,0.00010958,2]
[333489124,1722192640167,-500.0,0.00010958,2]
[333489125,1722192640178,-500.0,0.00010958,2]
[333489126,1722192640188,-500.0,0.00010958,2]
[333489127,1722192640198,-500.0,0.00010958,2]
[333489129,1722192640209,-500.0,0.00010958,2]
[333489130,1722192640219,-459.37588884,0.00010958,2]
[333489131,1722192640229,-500.0,0.00010958,2]
[333489132,1722192640239,-500.0,0.00010958,2]
[333489133,1722192640249,-501.75592884,0.00010958,2]
[333489134,1722192640259,-500.73255315,0.00010958,2]
[333489135,1722192640271,-401.95293304,0.00010958,2]
[333489137,1722192640281,-163.10359293,0.00010996,2]
[333489139,1722192640292,-5521.42600838,0.00010997,2]
[333489141,1722192640302,-1304.82874344,0.00010997,2]
[333489143,1722192640312,-1829.0,0.00010998,2]
[333489145,1722192640323,-362.0,0.00010998,2]
[333489147,1722192640333,-1254.0,0.00010998,2]
[333489149,1722192640343,-478.224,0.00010998,2]
[333489151,1722192640353,-450.0,0.00010998,2]
[333489153,1722192640364,-445.0,0.00010998,2]
[333489155,1722192640374,-453.068,0.00010998,2]
[333489157,1722192640384,-1864.762,0.00010998,2]
[333489159,1722192640394,-5122.0,0.00010998,2]
[333489161,1722192640405,-4696.313,0.00010998,2]
[333489163,1722192640415,-5831.0,0.00010998,2]
[333489165,1722192640425,-150.0,0.00010998,2]
[333489167,1722192640435,-500.0,0.00010998,2]
[333489169,1722192640446,-150.01,0.00010999,2]
[333489172,1722192640456,-2118.36543561,0.00010999,2]
[333489174,1722192640467,-500.0,0.00010999,2]
[333489176,1722192640477,-164.75,0.00010999,2]
[333489178,1722192640488,-1005.68,0.00010999,2]
[333489180,1722192640498,-1005.68,0.00010999,2]
[333489182,1722192640508,-1005.68,0.00010999,2]
[333489184,1722192640518,-1005.68,0.00010999,2]
[333489186,1722192640529,-1005.68,0.00010999,2]
[333489188,1722192640539,-1005.68,0.00010999,2]
[333489190,1722192640549,-1005.68,0.00010999,2]
[333489192,1722192640559,-1005.68,0.00010999,2]
[333489194,1722192640569,-1005.68,0.00010999,2]
[333489196,1722192640580,-1005.68,0.00010999,2]
[333489198,1722192640591,-1005.68,0.00010999,2]
[333489200,1722192640601,-1005.68,0.00010999,2]
[333489202,1722192640611,-1005.68,0.00010999,2]
[333489204,1722192640622,-1005.68,0.00010999,2]
[333489206,1722192640632,-1005.68,0.00010999,2]
[333489208,1722192640642,-500.0,0.00010999,2]
[333489210,1722192640653,-1005.68,0.00010999,2]
[333489213,1722192640663,-500.0,0.00010999,2]
[333489215,1722192640673,-1005.68,0.00010999,2]
[333489217,1722192640684,-500.0,0.00010999,2]
[333489219,1722192640695,-1005.68,0.00010999,2]
[333489221,1722192640706,-624.34,0.00010999,2]
[333489237,1722192640994,-1005.68,0.00010999,2]
[333489238,1722192641020,-1005.68,0.00010999,2]
[333489239,1722192641032,-1005.68,0.00010999,2]
[333489240,1722192641042,-1005.80643263,0.00010999,2]
[333489241,1722192641052,-500.0,0.00010999,2]
[333489242,1722192641062,-500.0,0.00010999,2]
[333489243,1722192641071,-500.0,0.00010999,2]
[333489244,1722192641080,-590.9,0.00010999,2]
[333489245,1722192641090,-500.0,0.00010999,2]
[333489246,1722192641101,-228.83159855,0.00010999,2]
[333489247,1722192641111,-500.0,0.00010999,2]
[333489248,1722192641120,-184.23453003,0.00010999,2]
[333489249,1722192641130,-500.0,0.00010999,2]
[333489250,1722192641139,-500.0,0.00010999,2]
[333489251,1722192641149,-500.0,0.00010999,2]
[333489252,1722192641158,-500.0,0.00010999,2]
[333489253,1722192641168,-445.8557,0.00010999,2]
[333489254,1722192641177,-467.79,0.00010999,2]
[333489255,1722192641188,-500.0,0.00010999,2]
[333489256,1722192641198,-638.16,0.00010999,2]
[333489257,1722192641207,-156.02,0.00010999,2]
[333489258,1722192641217,-500.0,0.00010999,2]
[333489259,1722192641227,-500.0,0.00010999,2]
[333489260,1722192641236,-500.0,0.00010999,2]
[333489261,1722192641246,-373.82,0.00010999,2]
[333489262,1722192641255,-500.0,0.00010999,2]
[333489263,1722192641265,-500.0,0.00010999,2]
[333489264,1722192641277,-500.0,0.00010999,2]
[333489265,1722192641286,-168.07,0.00010999,2]
[333489266,1722192641297,-500.0,0.00010999,2]
[333489267,1722192641306,-549.75,0.00010999,2]
[333489268,1722192641315,-1000.0,0.00010999,2]
[333489269,1722192641325,-500.0,0.00010999,2]
[333489270,1722192641335,-610.41,0.00010999,2]
[333489271,1722192641345,-8264.97,0.00010999,2]
[333489272,1722192641354,-8264.97,0.00010999,2]
[333489273,1722192641364,-8264.97,0.00010999,2]
[333489274,1722192641374,-8264.97,0.00010999,2]
[333489275,1722192641384,-8264.97,0.00010999,2]
[333489276,1722192641394,-8264.97,0.00010999,2]
[333489277,1722192641404,-8264.97,0.00010999,2]
[333489278,1722192641413,-8264.97,0.00010999,2]
[333489279,1722192641423,-8264.97,0.00010999,2]
[333489280,1722192641432,-8264.97,0.00010999,2]
[333489281,1722192641442,-8264.97,0.00010999,2]
[333489282,1722192641452,-8264.97,0.00010999,2]
[333489283,1722192641462,-8264.97,0.00010999,2]
[333489284,1722192641472,-8264.97,0.00010999,2]
[333489285,1722192641481,-8264.97,0.00010999,2]
[333489286,1722192641490,-8264.97,0.00010999,2]
[333489287,1722192641501,-8264.97,0.00010999,2]
[333489288,1722192641510,-8264.97,0.00010999,2]
[333489289,1722192641522,-8264.97,0.00010999,2]
[333489290,1722192641531,-8264.97,0.00010999,2]
[333489291,1722192641540,-8264.97,0.00010999,2]
[333489292,1722192641549,-8264.97,0.00010999,2]
[333489293,1722192641558,-8264.97,0.00010999,2]
[333489294,1722192641568,-8265.18906628,0.00010999,2]
[333489295,1722192641577,-847.63,0.00010999,2]
[333489296,1722192641587,-59946.67545538,0.00011,2]
[333489297,1722192641669,-47.80983768,0.00011,2]
[333489298,1722192641681,-1486.86478223,0.00011,2]
[333489299,1722192641692,-1848.7374985,0.00011,2]
[333489300,1722192641704,-1971.85999999,0.00011,2]
[333489301,1722192641715,-1999.524,0.00011,2]
[333489302,1722192641727,-21256.29782865,0.00011,2]
[333489303,1722192641738,-1730.84596,0.00011,2]
[333489304,1722192641749,-9210.76,0.00011,2]
[333489305,1722192641760,-10446.05879897,0.00011,2]
[333489306,1722192641782,-698.50638546,0.00011,2]
[333489307,1722192641793,-1720.07733722,0.00011,2]
[333489308,1722192642780,-1596.30903577,0.00011,2]
[333489314,1722192642961,-500.32600203,0.00011,2]
[333489315,1722192642972,-687.85090234,0.00011,2]
[333489316,1722192642984,-2984.75,0.00011,2]
[333489317,1722192643028,-20269.35955773,0.00011,2]
[333489318,1722192643037,-37423.85861638,0.00011,2]
[333489319,1722192643090,-327.12129972,0.00011,2]
[333489350,1722192645594,-207.104,0.00010998,2]
[333489351,1722192645604,-644.01674,0.00011,2]
[333489352,1722192645647,-3750.898,0.00011,2]
[333489353,1722192645658,-341653.50498862,0.00011,2]
[333489354,1722192645701,-3856787.5357199,0.00011,2]
[333489355,1722192645711,-250.0,0.00011,2]
[333489356,1722192645721,-397120.36214748,0.00011,2]
[333489357,1722192645732,-1429689.09267823,0.00011,2]
[333489358,1722192645741,-8959300.44158325,0.00011,2]
[333489359,1722192645751,-3414033.25084542,0.00011,2]
[333489360,1722192645760,-1238.0,0.00011,2]
[333489361,1722192645771,-1195.94,0.00011,2]
[333489362,1722192645781,-1892897.06553686,0.00011,2]
[333489363,1722192645791,-2075531.48932125,0.00011,2]
[333489364,1722192645801,-273041.23294087,0.00011,2]
[333489365,1722192645811,-111161.50344869,0.00011,2]
[333489366,1722192645820,-508541.61283915,0.00011,2]
[333489367,1722192645830,-1086670.8998756,0.00011,2]
[333489368,1722192645839,-362298.13639161,0.00011,2]
[333489369,1722192645849,-1749264.68202493,0.00011,2]
[333489370,1722192645858,-659764.80775773,0.00011,2]
[333489371,1722192645868,-2729318.81383295,0.00011,2]
[333489372,1722192645878,-1034186.8829028,0.00011,2]
[333489373,1722192645888,-706701.27784277,0.00011,2]
[333489374,1722192645898,-500.0,0.00011,2]
[333489375,1722192645907,-500.0,0.00011,2]
[333489376,1722192645918,-151.0,0.00011,2]
[333489377,1722192645927,-500.0,0.00011,2]
[333489378,1722192645937,-151.0,0.00011,2]
[333489379,1722192645946,-500.0,0.00011,2]
[333489380,1722192645956,-151.0,0.00011,2]
[333489381,1722192645966,-151.0,0.00011,2]
[333489382,1722192645975,-500.0,0.00011,2]
[333489383,1722192645984,-151.0,0.00011,2]
[333489384,1722192645994,-500.0,0.00011,2]
[333489385,1722192646004,-151.0,0.00011,2]
[333489386,1722192646014,-500.0,0.00011,2]
[333489387,1722192646027,-199.0,0.00011,2]
[333489388,1722192646037,-920.0,0.00011,2]
[333489389,1722192646046,-20022048.96742551,0.00011,2]
[333489391,1722192646063,-3588.56393143,0.00011,2]
[333489393,1722192646075,-9049.34034,0.00011,2]
[333489395,1722192646087,-7297.01446395,0.00011,2]
[333489398,1722192646098,-3337.46412,0.00011,2]
[333490261,1722192661880,-485.05125098,6.781e-05,2]
[333490262,1722192663076,-274.65223071,6.781e-05,2]
[333490263,1722192723412,-220.12459623,6.781e-05,2]
[333490264,1722192731638,-322.78875229,6.781e-05,2]
[333490265,1722192733825,-162.26249869,6.781e-05,2]
[333490266,1722192761399,-282.7207589,6.781e-05,2]
[333490267,1722192763796,-202.33049208,6.781e-05,2]
[333490268,1722192815741,-158.89214618,6.781e-05,2]
[333490269,1722192938343,9431.0,8.74e-06,14]
[333490270,1722193084107,150.0,5e-05,2]
[333490271,1722193084129,120.03797288,5e-05,2]
[333490272,1722193442985,2893.22938316,6.061e-05,2]
[333490273,1722193489035,150.0,6.061e-05,2]
[333490274,1722193489057,150.0,6.061e-05,2]
[333490275,1722193489079,150.0,6.061e-05,2]
[333490276,1722193489100,150.0,6.061e-05,2]
[333490277,1722193489123,150.0,6.061e-05,2]
[333490278,1722193489143,150.0,6.061e-05,2]
[333490279,1722193489163,47.57589857,6.061e-05,2]
[333490280,1722193501781,150.0,6.061e-05,2]
[333490281,1722193501810,165.42930106,6.061e-05,2]
[333490282,1722193501831,150.0,6.061e-05,2]
[333490283,1722193501854,150.0,6.061e-05,2]
[333490284,1722193501878,150.0,6.061e-05,2]
[333490285,1722193501901,150.0,6.061e-05,2]
[333490286,1722193501926,1495.59518491,6.061e-05,2]
[333490287,1722193516440,150.0,6.061e-05,2]
[333490288,1722193516462,150.0,6.061e-05,2]
[333490289,1722193516486,98.48084343,6.061e-05,2]
[333490314,1722193831831,-641.55,8.219e-05,2]
[333490315,1722193831840,-168.76,9.535e-05,2]
[333490316,1722193831850,-1000.0,9.538e-05,2]
[333490317,1722193831859,-1250.0,0.0001,2]
[333490318,1722193831868,-199.9,0.00010122,2]
[333490319,1722193831877,-199.9,0.00010125,2]
[333490320,1722193831887,-199.9,0.00010128,2]
[333490321,1722193831896,-199.9,0.0001013,2]
[333490322,1722193831905,-199.9,0.00010133,2]
[333490323,1722193831915,-499.99,0.00010135,2]
[333490324,1722193831924,-199.9,0.00010136,2]
[333490325,1722193831934,-51.54858087,0.00010136,2]
[333490326,1722193832001,-252.08141913,0.00010136,2]
[333490327,1722193832011,-112.58894175,0.00010136,2]
[333490328,1722193832179,-770.09105825,0.00010136,2]
[333490329,1722193832189,-300.0,0.00010137,2]
[333490330,1722193832198,-199.9,0.00010138,2]
[333490331,1722193832207,-199.9,0.00010141,2]
[333490332,1722193832217,-199.9,0.00010144,2]
[333490333,1722193832226,-199.9,0.00010146,2]
[333490334,1722193832236,-199.9,0.00010149,2]
[333490335,1722193832245,-13482.21865064,0.00010152,2]
[333490336,1722193832256,-659.47,0.00010152,2]
[333490337,1722193832267,-1039.39805608,0.00010152,2]
[333490348,1722193837827,-514.74031448,0.00010152,2]
[333490349,1722193837839,-615.46734802,0.00010152,2]
[333490350,1722193838107,-1004.0000963,0.00010152,2]
[333490351,1722193838120,-4519.65421666,0.00010152,2]
[333490355,1722193838165,-363.05131782,0.00010152,2]
[333490358,1722193838177,-199.9,0.00010152,2]
[333490360,1722193838190,-199.9,0.00010154,2]
[333490362,1722193838202,-199.9,0.00010157,2]
[333490364,1722193838214,-199.9,0.0001016,2]
[333490366,1722193838226,-199.9,0.00010162,2]
[333490368,1722193838241,-199.9,0.00010165,2]
[333490371,1722193838252,-199.9,0.00010168,2]
[333490373,1722193838263,-132.4955625,0.0001017,2]
[333490375,1722193838276,-67.4044375,0.0001017,2]
[333490377,1722193838287,-199.9,0.00010173,2]
[333490379,1722193838299,-641.55,0.00010452,2]
[333490382,1722193838312,-11495.0,0.000105,3]
[333490384,1722193838323,-2173.5075465,0.00010504,2]
[333490386,1722193838337,-685.0681515,0.00010504,2]
[333490390,1722193838361,-1033.678302,0.00010504,2]
[333490392,1722193838372,-262.0,0.0001065,2]
[333490394,1722193838382,-93.71310678,0.0001073,2]
[333490396,1722193838394,-906.28689322,0.0001073,2]
[333490398,1722193838405,-187.233964,0.00010779,2]
[333490400,1722193838416,-259.62041,0.0001078,2]
[333490402,1722193838428,-518.0,0.00010781,2]
[333490404,1722193838440,-262.0,0.0001088,2]
[333490406,1722193838451,-173.81806974,0.000109,5]
[333490419,1722193840593,-557.5900001,0.000109,5]
[333490420,1722193840616,-327.98000001,0.000109,5]
[333490452,1722193843101,-10435.61193015,0.000109,5]
[333490453,1722193843113,-1000.0,0.000109,2]
[333490454,1722193843123,-2466.83304724,0.000109,2]
[333490455,1722193843134,-500.0,0.00010912,2]
[333490456,1722193843145,-500.0,0.00010958,2]
[333490457,1722193843155,-500.0,0.00010958,2]
[333490458,1722193843167,-155.0,0.0001099,2]
[333490459,1722193843178,-810.0,0.00010998,2]
[333490460,1722193843187,-445.0,0.00010998,2]
[333490461,1722193843198,-500.0,0.00010998,2]
[333490462,1722193843208,-500.0,0.00010998,2]
[333490463,1722193843217,-482.07,0.00010998,2]
[333490464,1722193843230,-500.0,0.00010998,2]
[333490465,1722193843245,-500.0,0.00010998,2]
[333490466,1722193843257,-500.0,0.00010998,2]
[333490467,1722193843268,-500.0,0.00010998,2]
[333490468,1722193843278,-500.0,0.00010998,2]
[333490469,1722193843291,-2118.36543561,0.00010999,2]
[333490470,1722193843302,-500.0,0.00010999,2]
[333490471,1722193843314,-500.0,0.00010999,2]
[333490472,1722193843326,-164.04758606,0.00010999,2]
[333490473,1722193843337,-210.39281179,0.00010999,2]
[333490474,1722193843349,-500.0,0.00010999,2]
[333490475,1722193843361,-500.0,0.00010999,2]
[333490476,1722193843373,-150.15071452,0.00010999,2]
[333490477,1722193843383,-410.05,0.00010999,2]
[333490478,1722193843395,-584.75,0.00010999,2]
[333490479,1722193843407,-152.95,0.00010999,2]
[333490480,1722193843418,-521.40761903,0.00010999,2]
[333490481,1722193843429,-813.79,0.00010999,2]
[333490482,1722193843440,-17919.19368005,0.00011,2]
[333490483,1722193843454,-33848.5,0.00011,2]
[333490484,1722193843469,-10001.989951,0.00011,2]
[333490485,1722193845951,-1002.81123866,0.00011,2]
[333490486,1722193846160,-250.10479714,0.00011,2]
[333490487,1722193846174,-116486.2599693,0.00011,2]
[333490488,1722193846186,-561083.56313751,0.00011,2]
[333490489,1722193846199,-2124.78082076,0.00011,2]
[333490490,1722193846212,-12780.09052708,0.00011,2]
[333490491,1722193846245,-973.30801758,0.00011,2]
[333490492,1722193846259,-352.65738671,0.00011,2]
[333490493,1722193846272,-815.6971792,0.00011,2]
[333490494,1722193846301,-1523.78274965,0.00011,2]
[333490497,1722193846314,-1322.85000005,0.00011,2]
[333490499,1722194752132,1411.51115078,0.00011,7]
[333490500,1722194765064,1000.0,0.000109,23]
[333490547,1722195032068,-2818.399724,6.94e-05,2]
[333490551,1722195032101,-60.02343791,6.94e-05,2]
[333490553,1722195032111,-300.0,8.178e-05,2]
[333490555,1722195032122,-634.11,8.219e-05,2]
[333490557,1722195032134,-2818.4,9.756e-05,2]
[333490592,1722195032434,-1000.0,9.759e-05,2]
[333490595,1722195032449,-1222.61,9.973e-05,2]
[333490598,1722195032459,-300.0,9.999e-05,2]
[333490601,1722195032468,-300.0,9.999e-05,2]
[333490604,1722195032478,-7048.35785663,0.0001,2]
[333490607,1722195032489,-329.71067683,0.0001,2]
[333490609,1722195032499,-1250.0,0.0001,2]
[333490611,1722195032508,-260.58,0.00010333,2]
[333490613,1722195032518,-803.60862942,0.00010383,2]
[333490615,1722195032533,-643.37137058,0.00010383,2]
[333490617,1722195032543,-424.51,0.00010391,2]
[333490619,1722195032553,-634.11,0.00010466,2]
[333490621,1722195032562,-1865.0,0.000107,2]
[333490624,1722195032572,-38410.13437277,0.0001088,2]
[333490626,1722195032583,-537.75480804,0.0001088,2]
[333490721,1722195038127,-1780.0858619,0.0001088,2]
[333490727,1722195038368,-568.94985213,0.0001088,2]
[333490728,1722195038379,-453.30570109,0.0001088,2]
[333490775,1722195040194,-250.0,0.00010281,2]
[333490776,1722195040206,-19008.45448065,0.0001088,2]
[333490777,1722195040219,-1603.97968,0.0001088,2]
[333490778,1722195040230,-17116.84975,0.0001088,2]
[333490779,1722195040251,-259429.03148948,0.0001088,2]
[333490780,1722195040261,-3000.0,0.0001089,2]
[333490781,1722195040269,-1709.9529,0.000109,2]
[333490782,1722195040280,-804.4465,0.000109,2]
[333490783,1722195040290,-2440.1857,0.000109,2]
[333490784,1722195040299,-1000.0,0.000109,2]
[333490785,1722195040309,-1000.0,0.000109,2]
[333490786,1722195040320,-1000.0,0.000109,2]
[333490787,1722195040329,-1000.0,0.000109,2]
[333490788,1722195040339,-1164.0,0.000109,3]
[333490789,1722195040349,-1000.0,0.000109,3]
[333490790,1722195040359,-1000.0,0.000109,3]
[333490791,1722195040369,-1000.0,0.000109,2]
[333490792,1722195040378,-1050.0,0.000109,2]
[333490793,1722195040389,-1000.0,0.000109,2]
[333490794,1722195040398,-1001.0,0.000109,2]
[333490795,1722195040408,-1000.0,0.000109,2]
[333490796,1722195040418,-181.54094802,0.000109,2]
[333490797,1722195040427,-177.13138484,0.000109,2]
[333490798,1722195040437,-1008.49452256,0.000109,2]
[333490799,1722195040448,-2198.58099268,0.000109,2]
[333490800,1722195040458,-5640.68960568,0.000109,2]
[333490801,1722195040467,-399.65953614,0.00010958,2]
[333490802,1722195040477,-1081.06,0.00010958,2]
[333490803,1722195040487,-1000.0,0.00010979,2]
[333490804,1722195040496,-37999.7297783,0.00010997,2]
[333490805,1722195040506,-150.0,0.00010998,2]
[333490806,1722195040516,-556.47,0.00010999,2]
[333490807,1722195040525,-500.0,0.00010999,2]
[333490808,1722195040535,-500.0,0.00010999,2]
[333490809,1722195040545,-500.0,0.00010999,2]
[333490810,1722195040554,-214.6454671,0.00010999,2]
[333490811,1722195040564,-500.0,0.00010999,2]
[333490812,1722195040574,-593.12130493,0.00010999,2]
[333490813,1722195040584,-713.51,0.00010999,2]
[333490814,1722195040595,-713.51,0.00010999,2]
[333490816,1722195040605,-713.51,0.00010999,2]
[333490817,1722195040615,-713.51,0.00010999,2]
[333490819,1722195040625,-713.51,0.00010999,2]
[333490821,1722195040636,-713.51,0.00010999,2]
[333490822,1722195040646,-713.51,0.00010999,2]
[333490823,1722195040656,-713.51,0.00010999,2]
[333490824,1722195040669,-713.51,0.00010999,2]
[333490825,1722195040679,-713.51,0.00010999,2]
[333490826,1722195040689,-713.51,0.00010999,2]
[333490827,1722195040701,-713.51,0.00010999,2]
[333490828,1722195040710,-713.51,0.00010999,2]
[333490829,1722195040719,-713.51,0.00010999,2]
[333490830,1722195040729,-713.51,0.00010999,2]
[333490831,1722195040738,-713.51,0.00010999,2]
[333490832,1722195040747,-713.51,0.00010999,2]
[333490833,1722195040756,-500.0,0.00010999,2]
[333490834,1722195040765,-713.51,0.00010999,2]
[333490835,1722195040775,-500.0,0.00010999,2]
[333490836,1722195040786,-500.0,0.00010999,2]
[333490837,1722195040796,-713.51,0.00010999,2]
[333490838,1722195040806,-334.66,0.00010999,2]
[333490839,1722195040816,-713.51,0.00010999,2]
[333490840,1722195040827,-713.51,0.00010999,2]
[333490841,1722195040837,-713.51,0.00010999,2]
[333490842,1722195040848,-713.51,0.00010999,2]
[333490843,1722195040859,-713.53008823,0.00010999,2]
[333490844,1722195040871,-500.0,0.00010999,2]
[333490845,1722195040881,-500.0,0.00010999,2]
[333490846,1722195040891,-500.0,0.00010999,2]
[333490847,1722195040900,-489.24,0.00010999,2]
[333490848,1722195040909,-500.0,0.00010999,2]
[333490849,1722195040919,-299.28,0.00010999,2]
[333490850,1722195040928,-500.0,0.00010999,2]
[333490851,1722195040938,-500.0,0.00010999,2]
[333490852,1722195040949,-500.0,0.00010999,2]
[333490853,1722195040958,-500.0,0.00010999,2]
[333490854,1722195040967,-500.0,0.00010999,2]
[333490855,1722195040976,-500.0,0.00010999,2]
[333490856,1722195040985,-500.0,0.00010999,2]
[333490857,1722195040996,-500.0,0.00010999,2]
[333490858,1722195041007,-500.0,0.00010999,2]
[333490859,1722195041016,-500.0,0.00010999,2]
[333490860,1722195041026,-500.0,0.00010999,2]
[333490861,1722195041035,-500.0,0.00010999,2]
[333490862,1722195041046,-500.0,0.00010999,2]
[333490863,1722195041055,-217.18762155,0.00010999,2]
[333490864,1722195041065,-500.0,0.00010999,2]
[333490865,1722195041075,-500.0,0.00010999,2]
[333490866,1722195041084,-559.47,0.00010999,2]
[333490867,1722195041094,-500.0,0.00010999,2]
[333490868,1722195041103,-500.0,0.00010999,2]
[333490869,1722195041114,-500.0,0.00010999,2]
[333490870,1722195041125,-646.31,0.00010999,2]
[333490871,1722195041136,-562.83,0.00010999,2]
[333490872,1722195041146,-500.0,0.00010999,2]
[333490873,1722195041156,-557.9,0.00010999,2]
[333490874,1722195041166,-500.0,0.00010999,2]
[333490875,1722195041176,-500.0,0.00010999,2]
[333490876,1722195041185,-500.0,0.00010999,2]
[333490877,1722195041195,-500.0,0.00010999,2]
[333490878,1722195041205,-500.0,0.00010999,2]
[333490879,1722195041214,-156.81,0.00010999,2]
[333490880,1722195041225,-500.0,0.00010999,2]
[333490881,1722195041234,-500.0,0.00010999,2]
[333490882,1722195041244,-500.0,0.00010999,2]
[333490883,1722195041254,-500.0,0.00010999,2]
[333490884,1722195041263,-500.0,0.00010999,2]
[333490885,1722195041272,-500.0,0.00010999,2]
[333490886,1722195041284,-500.0,0.00010999,2]
[333490887,1722195041293,-500.0,0.00010999,2]
[333490888,1722195041302,-500.0,0.00010999,2]
[333490889,1722195041311,-500.0,0.00010999,2]
[333490890,1722195041321,-500.0,0.00010999,2]
[333490891,1722195041331,-500.0,0.00010999,2]
[333490892,1722195041341,-500.0,0.00010999,2]
[333490893,1722195041352,-500.0,0.00010999,2]
[333490894,1722195041361,-500.0,0.00010999,2]
[333490895,1722195041371,-500.0,0.00010999,2]